bitfinex-derivatives/quotes_BTCF0:USTF0_20210409
["timestamp","ask_amount","ask_price","bid_price","bid_amount"]
[1617962598275,0.28,58002.0,58001.0,0.56672427]
[1617962598478,1.12830586,58002.0,58001.0,0.56672427]
[1617962598775,1.12830586,58002.0,58001.0,3.55212427]
[1617962599076,1.12830586,58002.0,58001.0,4.55212427]
[1617962599077,0.76068506,58002.0,58001.0,4.55212427]
[1617962599477,0.58636768,58002.0,58001.0,3.9080533]
[1617962599976,0.28,58002.0,58001.0,3.9080533]
[1617962601377,0.28,58002.0,58001.0,4.9080533]
[1617962602778,0.28,58002.0,58001.0,3.9080533]
[1617962602978,0.28,58002.0,58001.0,4.9080533]
[1617962603278,0.28,58002.0,58001.0,3.9080533]
[1617962603880,0.28,58002.0,58001.0,4.9080533]
[1617962604079,0.28,58002.0,58001.0,3.9080533]
[1617962604280,0.28,58002.0,58001.0,4.9080533]
[1617962604480,0.2612,58002.0,58001.0,3.9080533]
[1617962604680,0.2352,58002.0,58001.0,3.9080533]
[1617962605079,0.2352,58002.0,58001.0,4.9080533]
[1617962605682,0.2352,58002.0,58001.0,2.2226533]
[1617962606383,0.2246,58002.0,58001.0,2.2226533]
[1617962606682,0.2075,58002.0,58001.0,2.2226533]
[1617962606884,0.1867,58002.0,58001.0,2.2226533]
[1617962609585,0.1867,58002.0,58001.0,2.65729664]
[1617962610285,0.1867,58002.0,58001.0,2.76043664]
[1617962610787,0.1867,58002.0,58001.0,1.76043664]
[1617962611017,0.1867,58002.0,58001.0,1.85264221]
[1617962611288,0.29844,58002.0,58001.0,1.2226533]
[1617962611790,0.97249929,58002.0,58001.0,0.86672427]
[1617962612608,0.97249929,58002.0,58001.0,0.57]
[1617962613088,1.11557988,58002.0,58001.0,0.57]
[1617962613488,1.42208348,58002.0,58001.0,0.57]
[1617962614590,2.47260302,58002.0,57996.0,0.35615619]
[1617962614897,2.47260302,58002.0,57991.0,0.43530201]
[1617962614898,1.5,58000.0,57991.0,0.43530201]
[1617962615093,1.5,58000.0,57941.0,0.0519]
[1617962615094,1.5,57998.0,57990.0,0.3565333]
[1617962615293,1.5,57998.0,57970.0,0.55460736]
[1617962615294,1.5,57998.0,57963.0,0.92743442]
[1617962615295,3.4092,57990.0,57963.0,0.92743442]
[1617962615489,1.5,57988.0,57963.0,0.92743442]
[1617962615689,1.5,57986.0,57963.0,0.92743442]
[1617962615895,0.44970392,57964.0,57963.0,0.49]
[1617962616205,1.10438678,57964.0,57963.0,0.49]
[1617962616437,1.10438678,57964.0,57963.0,0.76]
[1617962616590,2.10438678,57964.0,57963.0,0.76]
[1617962616791,1.35046715,57964.0,57963.0,0.76]
[1617962616990,1.35046715,57964.0,57963.0,0.7636]
[1617962617192,0.83939429,57964.0,57963.0,0.7636]
[1617962617392,3.41579429,57964.0,57963.0,0.76]
[1617962617891,3.41579429,57964.0,57963.0,0.7636]
[1617962618093,3.7848918,57964.0,57963.0,0.7636]
[1617962619095,4.29595772,57964.0,57963.0,0.7636]
[1617962619695,3.7848918,57964.0,57963.0,0.76]
[1617962620097,5.29597684,57964.0,57963.0,0.76]
[1617962620496,2.71957684,57964.0,57963.0,0.76]
[1617962621009,0.83939429,57964.0,57963.0,0.7636]
[1617962621296,1.06489965,57964.0,57963.0,0.7636]
[1617962621796,0.69578429,57964.0,57963.0,0.88173]
[1617962622805,0.51105643,57966.0,57963.0,0.88173]
[1617962622806,0.44969962,57966.0,57963.0,0.88173]
[1617962622998,0.44969962,57966.0,57963.0,1.88173]
[1617962623199,0.45183695,57966.0,57963.0,1.88173]
[1617962623399,0.00519065,57967.0,57965.0,1.10725655]
[1617962623598,0.00519065,57967.0,57965.0,2.60725655]
[1617962623864,0.44792298,57977.0,57966.0,0.47]
[1617962623865,0.00519002,57976.0,57966.0,0.47]
[1617962624100,0.00519002,57976.0,57966.0,1.47]
[1617962624300,0.00518975,57981.0,57968.0,1.0]
[1617962624500,0.00518975,57981.0,57975.0,1.0]
[1617962624701,0.00518975,57981.0,57975.0,1.13846]
[1617962624901,0.00518975,57981.0,57976.0,1.01]
[1617962625308,0.00518975,57981.0,57977.0,1.0]
[1617962625502,0.00518975,57981.0,57980.0,0.10725655]
[1617962625724,0.50890054,57997.0,57980.0,0.10725655]
[1617962625725,0.00518952,57982.0,57980.0,0.10725655]
[1617962625969,0.00518952,57982.0,57981.0,3.0519]
[1617962626161,0.75663132,58007.0,57981.0,3.0519]
[1617962626162,0.00518915,57985.0,57981.0,3.0519]
[1617962626304,0.00518915,57985.0,57981.0,4.0519]
[1617962626505,0.00518915,57985.0,57984.0,1.0]
[1617962626707,0.0051889,57989.0,57984.0,1.2]
[1617962626906,0.0051889,57989.0,57984.0,1.47]
[1617962627106,0.00518874,57991.0,57985.0,1.0]
[1617962627306,0.00518874,57991.0,57987.0,1.0]
[1617962627508,0.00518862,57992.0,57990.0,0.10725655]
[1617962627707,0.00518862,57992.0,57990.0,1.10725655]
[1617962627907,0.00518862,57992.0,57991.0,1.27]
[1617962628710,0.00518845,57993.0,57991.0,1.27]
[1617962628910,0.00518845,57993.0,57991.0,0.27]
[1617962629112,0.00518845,57995.0,57991.0,0.27]
[1617962629313,0.00518845,57995.0,57991.0,1.27]
[1617962629812,0.00518845,57995.0,57991.0,0.27]
[1617962630014,0.00518829,57996.0,57994.0,3.9621]
[1617962630413,0.00518829,57996.0,57995.0,1.27]
[1617962630615,0.00518818,57998.0,57995.0,1.47]
[1617962631015,0.00518816,57999.0,57996.0,1.0]
[1617962631415,0.00518801,58001.0,57998.0,1.0]
[1617962631732,0.00518801,58001.0,57998.0,1.10725655]
[1617962631952,0.00518807,58002.0,57999.0,0.01]
[1617962632139,0.00518807,58002.0,57999.0,1.01]
[1617962632416,0.01027446,58002.0,58001.0,1.0]
[1617962632815,0.00518359,58003.0,58001.0,1.27]
[1617962633413,0.00518359,58003.0,58001.0,0.27]
[1617962633714,0.01026974,58003.0,58002.0,1.0]
[1617962633913,0.01026974,58003.0,58002.0,3.9967]
[1617962634132,0.01026974,58003.0,58002.0,4.2667]
[1617962634617,0.00518544,58003.0,58002.0,4.2667]
[1617962634925,0.00518544,58003.0,58002.0,4.4667]
[1617962635120,0.00518539,58004.0,58002.0,4.4667]
[1617962635315,0.00518539,58004.0,58002.0,3.4667]
[1617962635516,0.00518539,58005.0,58004.0,0.10725655]
[1617962635716,0.0102691,58006.0,58005.0,0.19481461]
[1617962636015,0.0102691,58006.0,58005.0,0.46481461]
[1617962636215,0.0102691,58006.0,58005.0,0.19481461]
[1617962636418,0.19696892,58007.0,58005.0,1.19481461]
[1617962636617,0.19696892,58007.0,58005.0,1.46481461]
[1617962636819,0.19696892,58007.0,58006.0,1.0]
[1617962637019,0.19696892,58007.0,58005.0,0.46481461]
[1617962637221,0.19696892,58007.0,58006.0,0.27]
[1617962638121,0.19696892,58007.0,58004.0,0.10725655]
[1617962638122,0.19696892,58007.0,58005.0,0.27]
[1617962638320,0.19696892,58007.0,58006.0,0.27]
[1617962638620,0.19696892,58007.0,58005.0,0.27]
[1617962638920,0.19696892,58007.0,58006.0,1.27]
[1617962639124,0.1867,58007.0,58006.0,1.27]
[1617962639321,0.1867,58007.0,58006.0,1.0]
[1617962639620,0.1867,58007.0,58006.0,1.47]
[1617962642123,0.1867,58007.0,58006.0,1.97]
[1617962642326,0.29187667,58013.0,58006.0,1.97]
[1617962642527,0.03325667,58013.0,58012.0,2.5513]
[1617962642724,1.90531495,58069.0,58012.0,2.5513]
[1617962642725,0.01026727,58020.0,58013.0,1.5]
[1617962642923,0.01026727,58020.0,58015.0,1.5]
[1617962643124,0.01026627,58026.0,58020.0,1.5]
[1617962643324,0.01026627,58026.0,58022.0,1.5]
[1617962643578,0.57356955,58052.0,58016.0,0.27]
[1617962643579,0.01026582,58029.0,58028.0,0.10725655]
[1617962643723,0.44732557,58038.0,58028.0,0.10725655]
[1617962643724,0.44732557,58038.0,58030.0,1.5]
[1617962643924,0.50831065,58044.0,58030.0,1.5]
[1617962643925,0.44690991,58044.0,58030.0,1.5]
[1617962644225,0.44690991,58044.0,58037.0,1.0]
[1617962644626,0.44689104,58046.0,58044.0,1.0]
[1617962644827,0.44689104,58046.0,58044.0,1.12334]
[1617962645027,0.75162242,58045.0,58044.0,1.12334]
[1617962645226,0.75162242,58045.0,58044.0,4.46564]
[1617962645427,0.304731,58045.0,58044.0,4.47564]
[1617962645729,0.304731,58045.0,58044.0,4.58289655]
[1617962647227,0.304731,58045.0,58044.0,3.58289655]
[1617962647529,0.304731,58045.0,58044.0,4.58289655]
[1617962647927,0.304731,58045.0,58044.0,3.58289655]
[1617962648526,0.304731,58045.0,58044.0,4.58289655]
[1617962648929,0.304731,58045.0,58044.0,3.58289655]
[1617962649128,0.304731,58045.0,58044.0,4.58289655]
[1617962649528,0.30431598,58046.0,58044.0,4.58289655]
[1617962649929,0.30431617,58047.0,58044.0,3.58289655]
[1617962650130,0.44628306,58055.0,58044.0,3.58289655]
[1617962650329,0.44628306,58055.0,58045.0,1.0]
[1617962650532,0.56,58057.0,58046.0,1.0]
[1617962650731,0.56,58057.0,58046.0,1.27]
[1617962650931,0.56,58057.0,58056.0,1.0]
[1617962651131,0.56,58057.0,58056.0,1.15206]
[1617962651333,0.56,58057.0,58056.0,1.42206]
[1617962651833,0.56,58057.0,58056.0,1.52931655]
[1617962652734,0.6121,58057.0,58056.0,1.52931655]
[1617962652932,0.56,58057.0,58056.0,3.08141655]
[1617962653732,0.4241,58057.0,58056.0,3.08141655]
[1617962654033,0.3263,58057.0,58056.0,3.08141655]
[1617962654432,0.2814,58057.0,58056.0,3.08141655]
[1617962654834,0.2814,58057.0,58056.0,3.28141655]
[1617962655035,0.44319524,58088.0,58056.0,3.28141655]
[1617962655250,0.44319524,58088.0,58056.0,8.28141655]
[1617962655449,1.50585503,58103.0,58056.0,8.28141655]
[1617962655450,0.44317846,58091.0,58069.0,4.5463]
[1617962655637,0.44317846,58091.0,58079.0,1.0]
[1617962655839,0.44317846,58091.0,58069.0,0.11548]
[1617962655840,0.36853663,58103.0,58090.0,0.10725655]
[1617962655841,0.44317145,58092.0,58090.0,0.10725655]
[1617962656240,0.44317145,58092.0,58091.0,0.27]
[1617962656438,0.61417806,58093.0,58091.0,0.26897637]
[1617962656638,0.68883942,58092.0,58091.0,0.26897637]
[1617962657039,0.44316821,58093.0,58091.0,0.26897637]
[1617962657439,0.44316059,58094.0,58091.0,0.26897637]
[1617962658274,0.44314968,58097.0,58091.0,0.26897637]
[1617962658468,0.44314968,58097.0,58096.0,3.589]
[1617962658941,0.2,58106.0,58096.0,3.859]
[1617962658942,0.4431352,58100.0,58096.0,3.859]
[1617962659470,0.44313723,58099.0,58096.0,3.859]
[1617962659854,0.74920343,58105.0,58098.0,0.10725655]
[1617962659855,0.24565212,58105.0,58098.0,0.10725655]
[1617962660343,0.2,58104.0,58099.0,0.27]
[1617962660545,3.5769,58101.0,58099.0,0.27]
[1617962661245,0.2,58104.0,58099.0,0.27]
[1617962661446,0.2,58104.0,58099.0,3.9583]
[1617962661847,0.10725655,58103.0,58099.0,3.9583]
[1617962662047,0.2,58102.0,58099.0,3.9583]
[1617962663251,0.10725655,58103.0,58099.0,3.9583]
[1617962667857,0.10725655,58103.0,58099.0,0.27]
[1617962668060,3.5645,58100.0,58099.0,0.27]
[1617962668593,3.5645,58100.0,58099.0,0.26897652]
[1617962669759,0.10725655,58103.0,58099.0,0.26897652]
[1617962674967,0.2,58110.0,58099.0,0.39657652]
[1617962675274,1.0,58111.0,58107.0,3.3239]
[1617962675666,1.0,58110.0,58108.0,0.27]
[1617962675867,1.7,58109.0,58108.0,0.27]
[1617962676168,0.2,58109.0,58108.0,0.27]
[1617962676366,0.2,58109.0,58103.0,3.7011]
[1617962676569,1.2,58109.0,58104.0,0.26]
[1617962676769,1.2,58109.0,58108.0,0.01]
[1617962676969,1.0,58105.0,58103.0,3.7011]
[1617962677169,1.2,58105.0,58103.0,3.7011]
[1617962677369,1.2,58105.0,58104.0,0.01]
[1617962677370,0.2,58105.0,58104.0,0.01]
[1617962677770,0.2,58105.0,58080.0,0.27]
[1617962677970,3.5412,58105.0,58104.0,0.10725655]
[1617962678171,3.5412,58105.0,58104.0,0.37725655]
[1617962678471,3.5412,58105.0,58104.0,0.10725655]
[1617962678773,0.10725655,58108.0,58104.0,0.37725655]
[1617962679171,0.0511,58107.0,58104.0,0.37725655]
[1617962679873,0.10725655,58108.0,58104.0,0.37725655]
[1617962680076,1.10725655,58108.0,58104.0,0.37725655]
[1617962680273,1.2,58107.0,58104.0,0.37725655]
[1617962680573,0.2,58107.0,58104.0,0.37725655]
[1617962680874,1.2,58107.0,58104.0,0.37725655]
[1617962681174,1.0,58105.0,58104.0,0.37725655]
[1617962682374,1.10725655,58108.0,58104.0,0.37725655]
[1617962682575,0.30169835,58105.0,58104.0,0.37725655]
[1617962683274,0.50169835,58105.0,58104.0,0.37725655]
[1617962683574,0.3016893,58106.0,58104.0,0.37725655]
[1617962683774,1.3016893,58106.0,58104.0,0.37725655]
[1617962683977,1.0,58105.0,58104.0,0.37623323]
[1617962684578,0.3016893,58106.0,58104.0,0.37623323]
[1617962684977,3.3008,58105.0,58104.0,0.37623323]
[1617962685178,3.6024915,58105.0,58104.0,0.37623323]
[1617962685578,3.8024915,58105.0,58104.0,0.37623323]
[1617962686482,4.16489868,58105.0,58104.0,0.37623323]
[1617962686981,5.16489868,58105.0,58104.0,0.37623323]
[1617962688884,4.96489868,58105.0,58104.0,0.37623323]
[1617962689888,5.16489868,58105.0,58104.0,0.37623323]
[1617962690287,6.66489868,58105.0,58104.0,0.37623323]
[1617962690687,3.16409868,58105.0,58104.0,0.37623323]
[1617962691087,3.36409868,58105.0,58104.0,0.37623323]
[1617962691286,3.16409868,58105.0,58104.0,0.37623323]
[1617962691889,2.8016915,58105.0,58104.0,0.37623323]
[1617962692589,1.3016915,58105.0,58104.0,0.37623323]
[1617962693589,1.3537915,58105.0,58104.0,0.37623323]
[1617962693790,3.24574944,58105.0,58104.0,0.37623323]
[1617962694391,3.19364944,58105.0,58104.0,0.37520992]
[1617962695192,4.69364944,58105.0,58104.0,0.37520992]
[1617962695892,5.06204301,58105.0,58104.0,0.37520992]
[1617962696894,5.20903301,58105.0,58104.0,0.37520992]
[1617962697992,5.46103301,58105.0,58104.0,0.37520992]
[1617962698594,3.96103301,58105.0,58104.0,0.37520992]
[1617962698795,5.26204301,58105.0,58104.0,0.37520992]
[1617962699295,8.00254301,58105.0,58104.0,0.37520992]
[1617962700004,8.57065105,58105.0,58104.0,0.37520992]
[1617962700895,5.83015105,58105.0,58104.0,0.37520992]
[1617962701499,5.26204301,58105.0,58104.0,0.37520992]
[1617962704707,5.26204301,58105.0,58104.0,0.37418665]
[1617962705000,3.76204301,58105.0,58104.0,0.37418665]
[1617962705602,3.39364944,58105.0,58104.0,0.37418665]
[1617962707406,3.76203394,58105.0,58104.0,0.37418665]
[1617962709307,5.26203394,58105.0,58104.0,0.37418665]
[1617962709708,3.76203394,58105.0,58104.0,0.37418665]
[1617962709908,5.26203394,58105.0,58104.0,0.37418665]
[1617962711011,8.68623394,58105.0,58104.0,0.37418665]
[1617962711623,9.24840604,58105.0,58104.0,0.37418665]
[1617962712513,9.24910604,58105.0,58104.0,0.37418665]
[1617962712713,9.24910604,58105.0,58104.0,0.27]
[1617962713115,9.24910604,58105.0,58086.0,0.27]
[1617962713318,6.54009835,58105.0,58086.0,0.27]
[1617962713516,6.54009835,58105.0,58104.0,0.27]
[1617962713838,6.54009835,58105.0,58087.0,0.27]
[1617962713839,0.71522182,58096.0,58087.0,0.27]
[1617962714014,1.5,58094.0,58079.0,0.4833]
[1617962714317,1.5,58087.0,58085.0,0.10725655]
[1617962714516,1.7,58086.0,58085.0,0.10725655]
[1617962714870,4.15293574,58086.0,58085.0,0.10725655]
[1617962715016,4.15293574,58086.0,58085.0,0.37725655]
[1617962715221,3.90730725,58086.0,58085.0,0.37725655]
[1617962715817,5.52139197,58086.0,58085.0,0.37725655]
[1617962716016,3.82139197,58086.0,58085.0,0.37725655]
[1617962716317,3.92864852,58086.0,58085.0,3.96555655]
[1617962716719,3.56019769,58086.0,58085.0,3.96555655]
[1617962718319,3.45294114,58086.0,58085.0,3.96555655]
[1617962718720,2.45294114,58086.0,58085.0,3.96555655]
[1617962719321,1.63507268,58086.0,58085.0,3.96555655]
[1617962719520,2.63507268,58086.0,58085.0,3.96555655]
[1617962719820,3.31172197,58086.0,58085.0,3.96555655]
[1617962720023,3.55734885,58086.0,58085.0,3.96555655]
[1617962720221,3.6646054,58086.0,58085.0,3.96555655]
[1617962721721,2.6646054,58086.0,58085.0,3.96555655]
[1617962721921,1.98795611,58086.0,58085.0,3.96555655]
[1617962723623,3.55992882,58086.0,58085.0,3.96555655]
[1617962726023,3.55992882,58086.0,58085.0,0.37725655]
[1617962727226,3.92837386,58086.0,58085.0,0.37725655]
[1617962727930,5.42837386,58086.0,58085.0,0.37725655]
[1617962728131,3.55992882,58086.0,58085.0,0.37725655]
[1617962728736,5.05992882,58086.0,58085.0,0.37725655]
[1617962728942,5.42764914,58086.0,58085.0,0.37725655]
[1617962729131,5.62764914,58086.0,58085.0,0.37725655]
[1617962729530,5.42764914,58086.0,58085.0,0.37725655]
[1617962729734,2.92764914,58086.0,58085.0,0.37725655]
[1617962729931,3.92764914,58086.0,58085.0,0.37725655]
[1617962730143,5.42764914,58086.0,58085.0,0.37725655]
[1617962730433,5.05920211,58086.0,58085.0,0.37725655]
[1617962730631,5.25920211,58086.0,58085.0,0.37725655]
[1617962730833,5.62765013,58086.0,58085.0,0.37725655]
[1617962731032,5.42765013,58086.0,58085.0,0.37725655]
[1617962731232,3.92765013,58086.0,58085.0,0.37725655]
[1617962731833,3.55920211,58086.0,58085.0,0.37725655]
[1617962732434,2.98722382,58086.0,58085.0,0.37725655]
[1617962732635,3.48722382,58086.0,58085.0,0.37725655]
[1617962732836,5.05891645,58086.0,58085.0,0.37725655]
[1617962733237,5.42736091,58086.0,58085.0,0.37725655]
[1617962735037,3.92736091,58086.0,58085.0,0.37725655]
[1617962735641,4.48722382,58086.0,58085.0,0.37725655]
[1617962736139,5.42717016,58086.0,58085.0,0.37725655]
[1617962738643,3.92717016,58086.0,58085.0,0.37725655]
[1617962739344,3.55872938,58086.0,58085.0,0.37725655]
[1617962740045,2.98722382,58086.0,58085.0,2.95525655]
[1617962740547,4.48722382,58086.0,58085.0,2.95525655]
[1617962740947,4.85565948,58086.0,58085.0,2.95525655]
[1617962742248,4.85635948,58086.0,58085.0,2.95525655]
[1617962743251,2.35635948,58086.0,58085.0,3.08916655]
[1617962743550,3.35635948,58086.0,58085.0,3.08916655]
[1617962743749,4.85635948,58086.0,58085.0,3.08916655]
[1617962743953,4.48792382,58086.0,58085.0,3.08916655]
[1617962744149,1.98792382,58086.0,58085.0,3.08916655]
[1617962744349,2.35635871,58086.0,58085.0,3.08916655]
[1617962744550,3.35635871,58086.0,58085.0,3.08916655]
[1617962744754,2.98792382,58086.0,58085.0,3.08916655]
[1617962745256,1.98792382,58086.0,58085.0,0.51116655]
[1617962745457,2.98792382,58086.0,58085.0,0.51116655]
[1617962745656,2.98792382,58086.0,58085.0,0.37725655]
[1617962746051,3.09893382,58086.0,58085.0,0.37725655]
[1617962746251,4.02874839,58086.0,58085.0,0.37725655]
[1617962746451,5.52874839,58086.0,58085.0,0.37725655]
[1617962747155,5.82764839,58086.0,58085.0,0.37725655]
[1617962747468,6.82764839,58086.0,58085.0,0.37725655]
[1617962747951,7.32764839,58086.0,58085.0,0.37725655]
[1617962748152,8.32764839,58086.0,58085.0,0.37725655]
[1617962748552,8.52764839,58086.0,58085.0,0.37725655]
[1617962749152,8.32764839,58086.0,58085.0,0.37725655]
[1617962751458,5.52874839,58086.0,58085.0,0.37725655]
[1617962751769,6.10016174,58086.0,58085.0,3.95805655]
[1617962752269,4.8601025,58086.0,58085.0,3.95805655]
[1617962754363,3.3601025,58086.0,58085.0,3.95805655]
[1617962754661,3.2490925,58086.0,58085.0,3.95805655]
[1617962754861,3.2490925,58086.0,58085.0,4.07396655]
[1617962755061,2.88066727,58086.0,58085.0,4.07396655]
[1617962758266,1.88066727,58086.0,58085.0,4.07396655]
[1617962758668,2.88066727,58086.0,58085.0,4.07396655]
[1617962759168,2.88066727,58086.0,58085.0,3.95805655]
[1617962759668,1.88066727,58086.0,58085.0,3.95805655]
[1617962759973,2.88066727,58086.0,58085.0,3.95805655]
[1617962760369,4.38066727,58086.0,58085.0,3.95805655]
[1617962761071,4.7490905,58086.0,58085.0,3.95805655]
[1617962761268,4.7490905,58086.0,58085.0,0.37725655]
[1617962761469,4.8459805,58086.0,58085.0,0.37725655]
[1617962761669,7.4874805,58086.0,58085.0,0.37725655]
[1617962761872,7.05913326,58086.0,58085.0,0.37725655]
[1617962762071,8.05913326,58086.0,58085.0,0.37725655]
[1617962762272,5.98086239,58086.0,58085.0,0.37725655]
[1617962762671,5.41763326,58086.0,58085.0,3.05435655]
[1617962763471,2.91763326,58086.0,58085.0,3.05435655]
[1617962763671,2.82074326,58086.0,58085.0,3.05435655]
[1617962763871,3.45232003,58086.0,58085.0,3.05435655]
[1617962764073,2.45232003,58086.0,58085.0,3.05435655]
[1617962764775,3.45232003,58086.0,58085.0,3.05435655]
[1617962765975,2.45232003,58086.0,58085.0,3.05435655]
[1617962766298,1.88066727,58086.0,58085.0,3.20705655]
[1617962766877,2.88066727,58086.0,58085.0,3.20705655]
[1617962767278,3.2490872,58086.0,58085.0,3.20705655]
[1617962767878,2.88066727,58086.0,58085.0,3.20705655]
[1617962768378,1.88066727,58086.0,58085.0,3.20705655]
[1617962768781,2.45328826,58086.0,58085.0,3.20705655]
[1617962769078,2.45328826,58086.0,58085.0,3.05435655]
[1617962769281,2.88066727,58086.0,58085.0,3.05435655]
[1617962769679,2.88066727,58086.0,58085.0,3.10565655]
[1617962770080,3.45331644,58086.0,58085.0,3.05435655]
[1617962771980,2.45331644,58086.0,58085.0,3.05435655]
[1617962773682,1.88066727,58086.0,58085.0,3.05435655]
[1617962777884,3.45335116,58086.0,58085.0,3.05435655]
[1617962779584,6.22585116,58086.0,58085.0,0.37725655]
[1617962779984,7.16403346,58086.0,58085.0,0.37725655]
[1617962782896,8.66403346,58086.0,58085.0,0.37725655]
[1617962787896,5.2732,58086.0,58085.0,0.37725655]
[1617962788398,7.4825163,58086.0,58085.0,0.37725655]
[1617962790097,4.7100163,58086.0,58085.0,0.37725655]
[1617962791297,3.7100163,58086.0,58085.0,0.37725655]
[1617962791497,4.7100163,58086.0,58085.0,0.37725655]
[1617962792100,7.5222163,58086.0,58085.0,0.37725655]
[1617962793001,8.09024633,58086.0,58085.0,0.37725655]
[1617962794704,8.09024633,58086.0,58085.0,0.27]
[1617962795103,8.09024633,58086.0,58080.0,0.01]
[1617962795501,8.09024633,58086.0,58085.0,0.27]
[1617962795702,3.70869643,58081.0,58080.0,0.27]
[1617962795902,4.70869643,58081.0,58080.0,0.27]
[1617962796221,4.95432212,58081.0,58079.0,0.10725655]
[1617962796406,4.95432212,58081.0,58080.0,0.27]
[1617962796702,3.0571743,58081.0,58080.0,0.27]
[1617962796901,2.60725655,58081.0,58080.0,0.27]
[1617962797405,4.81597658,58081.0,58080.0,0.27]
[1617962797905,7.64927658,58081.0,58080.0,0.27]
[1617962798305,8.21719494,58081.0,58080.0,0.27]
[1617962798505,8.21719494,58081.0,58070.0,0.27]
[1617962798932,8.21719494,58081.0,58068.0,0.27]
[1617962798933,1.60725655,58071.0,58068.0,0.27]
[1617962799147,2.988,58069.0,58064.0,0.29547251]
[1617962799384,1.5,58068.0,58065.0,0.01]
[1617962799713,1.5,58068.0,58049.0,0.49257638]
[1617962799714,2.1141911,58068.0,58059.0,0.29577636]
[1617962799806,1.0,58066.0,58064.0,0.27]
[1617962800118,1.5,58065.0,58053.0,0.29609958]
[1617962800321,1.5,58065.0,58060.0,0.27]
[1617962800552,4.95512387,58065.0,58060.0,0.27]
[1617962800724,1.5,58060.0,58052.0,0.01]
[1617962800908,1.5,58060.0,58054.0,0.26]
[1617962801106,1.5,58060.0,58052.0,0.01]
[1617962801408,0.57279342,58057.0,58055.0,0.25]
[1617962801608,1.7,58056.0,58055.0,0.25]
[1617962801825,1.7,58056.0,58011.0,0.4889]
[1617962801826,3.90947669,58056.0,58053.0,0.01]
[1617962802012,4.90947669,58056.0,58053.0,0.01]
[1617962802208,8.90947669,58056.0,58055.0,0.24]
[1617962802409,9.9759,58056.0,58054.0,0.01]
[1617962802808,13.47494456,58056.0,58055.0,0.24]
[1617962803008,13.47494456,58056.0,58041.0,0.01]
[1617962803208,13.27494456,58056.0,58052.0,0.27]
[1617962803513,13.47494456,58056.0,58055.0,0.25]
[1617962803716,9.9759,58056.0,58042.0,0.01]
[1617962803908,9.9759,58056.0,58055.0,0.24]
[1617962804108,12.18546171,58056.0,58055.0,0.24]
[1617962804308,12.18546171,58056.0,58043.0,0.03]
[1617962804513,11.61264268,58056.0,58054.0,0.26]
[1617962804811,11.61264268,58056.0,58055.0,0.24]
[1617962805009,9.9759,58056.0,58028.0,0.29514549]
[1617962805210,9.9759,58056.0,58043.0,0.27]
[1617962805410,7.60315284,58056.0,58055.0,0.24]
[1617962805610,7.60315284,58056.0,58045.0,0.02]
[1617962805611,6.60315284,58056.0,58045.0,0.02]
[1617962805821,0.67127882,58044.0,58015.0,0.4515]
[1617962806237,0.44748532,58046.0,58043.0,2.9461]
[1617962806238,1.0,58045.0,58043.0,2.9461]
[1617962806510,0.44748532,58046.0,58043.0,3.04358]
[1617962806714,0.36613175,58046.0,58045.0,0.10725655]
[1617962807110,0.30510668,58046.0,58045.0,0.37725655]
[1617962807610,0.01026796,58050.0,58045.0,0.37725655]
[1617962808210,0.01026758,58052.0,58045.0,0.37725655]
[1617962808411,0.36607497,58057.0,58045.0,0.37725655]
[1617962808412,0.01026718,58055.0,58046.0,0.29411913]
[1617962808763,0.01026718,58055.0,58054.0,0.10725655]
[1617962809248,0.01026718,58055.0,58054.0,0.37725655]
[1617962810912,0.01026706,58056.0,58054.0,0.37725655]
[1617962812415,0.01096706,58056.0,58054.0,0.37725655]
[1617962812718,0.0007,58056.0,58054.0,0.37725655]
[1617962813617,0.01096093,58056.0,58054.0,0.37725655]
[1617962813917,0.0007,58056.0,58054.0,0.37725655]
[1617962816119,0.00588478,58056.0,58054.0,0.37725655]
[1617962816520,0.0007,58056.0,58054.0,0.37725655]
[1617962819029,0.0007,58056.0,58055.0,2.6726]
[1617962819222,0.00588479,58056.0,58055.0,2.6726]
[1617962819421,0.00588479,58056.0,58055.0,2.9426]
[1617962819622,0.0007,58056.0,58055.0,2.9426]
[1617962820025,0.0007,58056.0,58055.0,0.27]
[1617962820649,0.0007,58056.0,58055.0,0.40338]
[1617962821232,0.0007,58056.0,58055.0,0.60338]
[1617962821423,0.0007,58056.0,58055.0,0.40338]
[1617962825026,0.0007,58056.0,58055.0,0.45578]
[1617962825228,0.0007,58056.0,58055.0,0.74924981]
[1617962825439,0.0007,58056.0,58055.0,0.69684981]
[1617962825739,0.0007,58056.0,58055.0,1.04878462]
[1617962825937,0.0007,58056.0,58055.0,1.24878462]
[1617962826128,0.0007,58056.0,58055.0,2.24878462]
[1617962826341,0.0007,58056.0,58055.0,2.29978462]
[1617962826734,0.0007,58056.0,58055.0,2.79978462]
[1617962826933,0.0007,58056.0,58055.0,3.59978462]
[1617962827435,0.0007,58056.0,58055.0,4.0297131]
[1617962827827,0.0007,58056.0,58055.0,4.2297131]
[1617962830168,0.00518416,58077.0,58055.0,4.7177048]
[1617962830331,0.01026667,58078.0,58055.0,4.7177048]
[1617962830332,0.0051841,58078.0,58076.0,2.7706]
[1617962830528,0.0051841,58078.0,58076.0,2.86854]
[1617962830730,0.00518266,58079.0,58077.0,0.27]
[1617962830930,0.00518266,58079.0,58077.0,0.37725655]
[1617962832531,0.00518262,58080.0,58077.0,0.37725655]
[1617962833634,0.00518262,58080.0,58078.0,1.0]
[1617962833934,0.00518262,58080.0,58077.0,0.37725655]
[1617962834136,0.00518262,58080.0,58079.0,0.27]
[1617962834340,0.00518262,58080.0,58078.0,0.27]
[1617962834636,0.00518262,58080.0,58079.0,0.27]
[1617962834837,0.00518262,58080.0,58079.0,1.27]
[1617962835036,0.00517818,58083.0,58079.0,1.0]
[1617962835237,0.00517818,58083.0,58079.0,1.27]
[1617962835839,0.00517818,58083.0,58079.0,0.27]
[1617962836243,0.00517818,58083.0,58078.0,1.27]
[1617962836442,0.00517818,58083.0,58079.0,1.0]
[1617962836642,0.00517818,58083.0,58079.0,1.27]
[1617962836843,0.00517818,58083.0,58079.0,0.27]
[1617962837043,0.00517818,58083.0,58079.0,1.27]